bitfinex/quotes_SOLUSD_20241107
["timestamp","ask_amount","ask_price","bid_price","bid_amount"]
[1730992397639,15.1224355,188.94,188.88,15.1224355]
[1730992397824,15.1224355,188.95,188.88,15.1224355]
[1730992398437,15.1224355,188.97,188.9,15.1224355]
[1730992398646,15.1224355,188.98,188.91,15.1224355]
[1730992398939,15.1224355,188.98,188.92,15.1224355]
[1730992400748,15.1224355,188.98,188.91,15.1224355]
[1730992401242,15.1224355,188.97,188.9,15.1224355]
[1730992401442,16.4306,188.99,188.89,15.1224355]
[1730992401443,15.1224355,188.96,188.89,15.1224355]
[1730992402251,15.1224355,188.93,188.86,15.1224355]
[1730992404334,15.1224355,188.93,188.87,15.1224355]
[1730992404933,15.1224355,188.95,188.88,15.1224355]
[1730992405439,15.1224355,188.95,188.89,15.1224355]
[1730992405949,16.4306,188.99,188.91,15.1224355]
[1730992406157,15.1224355,188.97,188.91,15.1224355]
[1730992406331,15.1224355,188.98,188.92,15.1224355]
[1730992406731,15.1224355,188.97,188.9,15.1224355]
[1730992407134,15.1224355,188.98,188.92,15.1224355]
[1730992407329,16.4306,188.99,188.9,15.1224355]
[1730992407330,15.1224355,188.97,188.9,15.1224355]
[1730992407762,15.1224355,188.96,188.9,15.1224355]
[1730992408057,15.1224355,188.97,188.9,15.1224355]
[1730992408234,15.1224355,188.95,188.89,15.1224355]
[1730992408435,15.1224355,188.92,188.86,15.1224355]
[1730992409065,15.1224355,188.91,188.85,15.1224355]
[1730992409355,15.1224355,188.88,188.82,15.1224355]
[1730992409558,15.1224355,188.87,188.81,15.1224355]
[1730992412638,15.1224355,188.88,188.82,15.1224355]
[1730992413563,15.1224355,188.89,188.82,15.1224355]
[1730992413736,16.1857,188.95,188.88,15.1224355]
[1730992413935,31.7019355,188.98,188.91,15.1224355]
[1730992414349,16.5795,188.98,188.92,15.1224355]
[1730992415141,16.5795,188.98,188.93,15.1224355]
[1730992415344,6.6076,188.99,188.94,15.1224355]
[1730992415544,15.5427,189.03,188.96,15.1224355]
[1730992415750,15.5427,189.03,188.99,15.1224355]
[1730992416262,6.2458,189.04,188.99,15.1224355]
[1730992416561,6.2458,189.04,189.0,15.1224355]
[1730992416761,15.1224355,189.07,189.0,15.1224355]
[1730992417258,15.1224355,189.06,189.0,15.1224355]
[1730992417468,24.17332208,189.06,189.0,24.17332208]
[1730992417761,24.17332208,189.02,188.95,24.17332208]
[1730992418084,24.17332208,189.0,188.93,24.17332208]
[1730992418362,24.17332208,189.01,188.95,24.17332208]
[1730992418764,24.17332208,189.02,188.95,24.17332208]
[1730992419063,24.17332208,189.03,188.96,24.17332208]
[1730992419853,24.17332208,189.01,188.94,24.17332208]
[1730992420252,24.17332208,189.02,188.95,24.17332208]
[1730992420645,24.17332208,189.03,188.96,24.17332208]
[1730992420856,24.17332208,189.04,188.97,24.17332208]
[1730992421262,24.17332208,189.03,188.96,24.17332208]
[1730992421545,24.17332208,189.03,188.95,24.17332208]
[1730992422075,24.17332208,189.03,188.96,24.17332208]
[1730992424448,24.17332208,189.02,188.95,24.17332208]
[1730992424862,24.17332208,189.03,188.96,24.17332208]
[1730992425072,24.17332208,189.02,188.94,24.17332208]
[1730992425651,24.17332208,189.02,188.95,24.17332208]
[1730992425857,24.17332208,189.03,188.96,24.17332208]
[1730992426052,24.17332208,189.02,188.95,24.17332208]
[1730992427063,24.17332208,189.01,188.93,24.17332208]
[1730992427373,24.17332208,188.94,188.84,6.3893]
[1730992427576,6.2272,188.99,188.82,160.6]
[1730992427577,24.17332208,188.91,188.85,24.17332208]
[1730992428249,24.17332208,188.91,188.84,24.17332208]
[1730992428565,24.17332208,188.92,188.85,24.17332208]
[1730992428957,5.2921,188.96,188.85,24.17332208]
[1730992429166,24.17332208,188.92,188.85,24.17332208]
[1730992429352,24.17332208,188.91,188.84,24.17332208]
[1730992429755,24.17332208,188.92,188.85,24.17332208]
[1730992429957,24.17332208,188.93,188.86,24.17332208]
[1730992430773,24.17332208,188.92,188.85,24.17332208]
[1730992431264,24.17332208,188.93,188.86,24.17332208]
[1730992431471,24.17332208,188.94,188.87,24.17332208]
[1730992431665,24.17332208,188.97,188.91,24.17332208]
[1730992431853,24.17332208,188.97,188.9,24.17332208]
[1730992432372,24.17332208,188.96,188.89,24.17332208]
[1730992432575,24.17332208,188.97,188.9,24.17332208]
[1730992432990,24.17332208,188.96,188.89,24.17332208]
[1730992433352,24.17332208,188.97,188.9,24.17332208]
[1730992434074,24.17332208,188.97,188.91,24.17332208]
[1730992434455,24.17332208,188.97,188.9,24.17332208]
[1730992434650,24.17332208,188.96,188.9,24.17332208]
[1730992435058,24.17332208,188.95,188.89,24.17332208]
[1730992435861,24.17332208,188.97,188.91,24.17332208]
[1730992436067,24.17332208,188.98,188.91,24.17332208]
[1730992436374,24.17332208,188.98,188.92,24.17332208]
[1730992436577,6.2272,188.99,188.94,24.17332208]
[1730992436888,5.52274459,189.07,188.98,24.17332208]
[1730992437056,5.52274459,189.07,189.06,24.17332208]
[1730992437258,16.577,189.1,189.06,24.17332208]
[1730992437452,16.577,189.1,189.06,15.09874714]
[1730992437657,16.577,189.1,189.07,15.09874714]
[1730992437868,16.577,189.1,189.05,15.09874714]
[1730992439578,16.577,189.1,189.04,15.09874714]
[1730992439781,16.577,189.1,189.05,15.09874714]
[1730992439989,16.577,189.1,189.06,15.09874714]
[1730992440279,36.98614714,189.15,189.08,15.09874714]
[1730992440859,21.8874,189.15,189.09,15.09874714]
[1730992441288,36.98614714,189.15,189.08,15.09874714]
[1730992441488,15.09874714,189.12,189.0,6.1078]
[1730992441784,15.09874714,189.14,189.07,15.09874714]
[1730992442293,24.15529348,189.13,189.06,24.15529348]
[1730992442862,24.15529348,189.14,189.07,24.15529348]
[1730992443687,24.15529348,189.13,189.06,24.15529348]
[1730992443874,24.15529348,189.12,189.05,24.15529348]
[1730992444076,24.15529348,189.14,189.07,24.15529348]
[1730992444586,21.8874,189.15,189.01,11.6883]
[1730992444965,46.04269348,189.15,189.09,24.15529348]
[1730992445584,46.04269348,189.15,189.08,24.15529348]
[1730992445886,24.15529348,189.14,189.07,24.15529348]
[1730992446477,46.04269348,189.15,189.08,24.15529348]
[1730992446673,24.15529348,189.14,189.07,24.15529348]
[1730992447265,21.8874,189.15,189.02,184.376884]
[1730992447266,46.04269348,189.15,189.08,24.15529348]
[1730992448384,24.15529348,189.13,189.06,24.15529348]
[1730992448689,24.15529348,189.14,189.07,24.15529348]
[1730992449182,24.15529348,189.14,189.02,184.376884]
[1730992449183,24.15529348,189.13,189.06,24.15529348]
[1730992449483,24.15529348,189.11,189.04,24.15529348]
[1730992449684,24.15529348,189.12,189.05,24.15529348]
[1730992449876,24.15529348,189.12,189.06,24.15529348]
[1730992450074,24.15529348,189.12,189.05,24.15529348]
[1730992450272,21.8874,189.15,189.01,172.2883]
[1730992450273,21.8874,189.15,189.08,24.15529348]
[1730992450480,46.04269348,189.15,189.08,24.15529348]
[1730992450686,24.15529348,189.14,189.08,24.15529348]
[1730992451492,46.04269348,189.15,189.08,24.15529348]
[1730992451657,24.15529348,189.14,189.08,24.15529348]
[1730992452084,46.04269348,189.15,189.08,24.15529348]
[1730992452484,24.15529348,189.14,189.07,24.15529348]
[1730992452783,24.15529348,189.14,189.08,24.15529348]
[1730992452967,24.15529348,189.14,189.07,24.15529348]
[1730992453289,24.15529348,189.12,189.05,24.15529348]
[1730992453475,24.15529348,189.12,189.06,24.15529348]
[1730992453676,24.15529348,189.14,189.07,24.15529348]
[1730992453875,24.15529348,189.13,189.06,24.15529348]
[1730992454686,46.04269348,189.15,189.09,24.15529348]
[1730992455087,46.04269348,189.15,189.08,24.15529348]
[1730992456885,24.15529348,189.14,189.07,24.15529348]
[1730992457481,24.15529348,189.15,189.08,24.15529348]
[1730992457873,24.15529348,189.14,189.08,24.15529348]
[1730992458305,24.15529348,189.15,189.08,24.15529348]
[1730992459009,24.15529348,189.13,189.03,184.376884]
[1730992459290,24.15529348,189.13,189.06,24.15529348]
[1730992459704,24.15529348,189.15,189.09,24.15529348]
[1730992460269,24.15529348,189.16,189.09,24.15529348]
[1730992460599,24.15529348,189.19,189.12,24.15529348]
[1730992460898,46.71159348,189.2,189.14,24.15529348]
[1730992461072,22.5563,189.2,189.14,24.15529348]
[1730992461475,40.57499348,189.2,189.14,24.15529348]
[1730992461688,24.15529348,189.18,189.11,24.15529348]
[1730992461875,24.15529348,189.17,189.1,24.15529348]
[1730992462080,24.15529348,189.17,189.11,24.15529348]
[1730992462282,24.15529348,189.18,189.11,24.15529348]
[1730992462478,24.15529348,189.19,189.12,24.15529348]
[1730992463118,24.15529348,189.19,189.13,24.15529348]
[1730992463591,24.15529348,189.19,189.13,15.08682942]
[1730992463592,15.08682942,189.19,189.13,15.08682942]
[1730992463774,31.50652942,189.2,189.13,15.08682942]
[1730992464084,16.4197,189.2,189.15,15.08682942]
[1730992464278,16.4197,189.2,189.14,15.08682942]
[1730992464483,22.6851,189.24,189.18,15.08682942]
[1730992464694,15.08682942,189.19,189.1,160.6]
[1730992464885,15.08682942,189.2,189.13,15.08682942]
[1730992465275,15.08682942,189.22,189.15,15.08682942]
[1730992465476,15.08682942,189.21,189.15,15.08682942]
[1730992465701,15.08682942,189.21,189.14,15.08682942]
[1730992465999,15.08682942,189.19,189.13,15.08682942]
[1730992466185,15.08682942,189.17,189.1,15.08682942]
[1730992466792,15.08682942,189.15,189.09,15.08682942]
[1730992466997,15.08682942,189.15,189.08,15.08682942]
[1730992467201,15.08682942,189.15,189.07,160.6]
[1730992467202,15.08682942,189.16,189.09,15.08682942]
[1730992467685,15.08682942,189.14,189.08,15.08682942]
[1730992467997,15.08682942,189.14,189.07,175.68682942]
[1730992468215,15.08682942,189.13,189.06,15.08682942]
[1730992468509,15.08682942,189.13,189.07,15.08682942]
[1730992468712,15.08682942,189.13,189.06,15.08682942]
[1730992468888,15.08682942,189.14,189.07,15.08682942]
[1730992469880,15.08682942,189.14,189.02,0.1]
[1730992470081,1.44675625,189.23,189.08,15.08682942]
[1730992470082,15.08682942,189.15,189.08,15.08682942]
[1730992471193,15.08682942,189.16,189.03,24.102374]
[1730992471397,15.08682942,189.16,189.09,15.08682942]
[1730992471706,15.08682942,189.14,189.07,15.08682942]
[1730992472088,15.08682942,189.18,189.03,184.502374]
[1730992472089,15.08682942,189.13,189.06,15.08682942]
[1730992473503,15.08682942,189.07,189.0,15.08682942]
[1730992473702,15.08682942,189.07,189.01,15.08682942]
[1730992475183,15.08682942,189.04,188.92,178.5944]
[1730992475404,15.08682942,189.03,188.97,15.08682942]
[1730992475711,15.08682942,189.05,188.98,15.08682942]
[1730992475886,23.976884,189.13,188.99,15.08682942]
[1730992475887,15.08682942,189.06,188.99,15.08682942]
[1730992476088,6.3018,189.14,189.05,15.08682942]
[1730992476399,15.08682942,189.1,189.04,15.08682942]
[1730992476580,15.08682942,189.09,189.02,15.08682942]
[1730992476899,15.08682942,189.1,189.03,15.08682942]
[1730992477099,15.08682942,189.09,188.99,0.12549]
[1730992477289,15.08682942,189.09,189.02,15.08682942]
[1730992478284,15.08682942,189.1,189.03,15.08682942]
[1730992479086,15.08682942,189.11,189.03,15.08682942]
[1730992479309,15.08682942,189.11,189.04,15.08682942]
[1730992479509,15.08682942,189.13,189.05,15.08682942]
[1730992479804,15.08682942,189.12,189.05,15.08682942]
[1730992480111,15.08682942,189.11,189.04,15.08682942]
[1730992480314,15.08682942,189.1,189.03,15.08682942]
[1730992480894,15.08682942,189.11,189.03,15.08682942]
[1730992481117,15.08682942,189.11,189.04,15.08682942]
[1730992481707,15.08682942,189.1,189.03,15.08682942]
[1730992483096,15.08682942,189.08,189.01,15.08682942]
[1730992483696,15.08682942,189.07,189.0,15.08682942]
[1730992484311,15.08682942,189.07,188.99,0.12549]
[1730992484312,15.08682942,189.01,188.99,0.12549]
[1730992484531,15.08682942,189.0,188.99,0.12549]
[1730992485327,15.08682942,189.02,189.0,50.0]
[1730992487226,15.08682942,189.04,189.0,50.0]
[1730992489416,15.08682942,189.03,189.0,50.0]
[1730992491619,15.08682942,189.09,189.02,15.08682942]
[1730992491994,15.7847,189.11,189.03,15.08682942]
[1730992492206,15.08682942,189.09,189.03,15.08682942]
[1730992495004,15.08682942,189.09,189.02,15.08682942]
[1730992495625,15.08682942,189.08,189.02,15.08682942]
[1730992496005,15.08682942,189.08,189.0,50.0]
[1730992496319,15.08682942,189.06,189.0,50.0]
[1730992496526,15.08682942,189.06,189.0,65.08682942]
[1730992496820,15.08682942,189.04,189.0,50.0]
[1730992497037,15.08682942,189.03,189.0,50.0]
[1730992497504,15.08682942,189.08,189.01,15.08682942]
[1730992497926,15.08682942,189.07,189.01,15.08682942]
[1730992499425,15.08682942,189.07,189.0,50.0]
[1730992499426,15.08682942,189.07,189.0,65.08682942]
[1730992499908,15.8001,189.08,189.02,15.08682942]
[1730992500103,30.88692942,189.08,189.01,15.08682942]
[1730992500437,15.08682942,189.04,189.0,50.0]
[1730992500606,15.08682942,189.03,189.0,50.0]
[1730992500804,21.61722942,189.01,189.0,50.0]
[1730992501017,21.74271942,189.01,189.0,50.0]
[1730992502439,36.82954884,189.01,189.0,50.0]
[1730992502601,36.82954884,189.01,189.0,48.5]
[1730992503523,42.12024884,189.01,189.0,48.5]
[1730992503704,21.74271942,189.01,189.0,48.5]
[1730992504106,21.61722942,189.01,189.0,48.5]
[1730992504705,15.08682942,189.01,189.0,48.5]
[1730992504907,15.08682942,189.04,189.0,48.5]
[1730992505203,15.08682942,189.05,189.0,48.5]
[1730992505407,15.08682942,189.06,189.0,48.5]
[1730992506135,15.08682942,189.05,189.0,48.5]
[1730992506513,15.08682942,189.04,189.0,48.5]
[1730992506831,15.08682942,189.03,189.0,48.5]
[1730992507532,15.08682942,189.02,189.0,48.5]
[1730992507708,15.08682942,189.01,189.0,48.5]
[1730992508508,15.08682942,189.02,189.0,48.5]
[1730992508703,15.08682942,189.04,189.0,48.5]
[1730992509002,15.08682942,189.05,189.0,48.5]
[1730992509431,15.08682942,189.04,189.0,48.5]
[1730992509725,15.08682942,189.05,189.0,48.5]
[1730992510114,15.08682942,189.04,189.0,48.5]
[1730992510623,15.08682942,189.03,189.0,48.5]
[1730992510831,15.08682942,189.02,189.0,48.5]
[1730992511213,15.08682942,189.04,189.0,48.5]
[1730992512031,15.08682942,189.03,189.0,48.5]
[1730992512433,15.08682942,189.06,189.0,48.5]
[1730992512610,15.08682942,189.08,189.01,15.08682942]
[1730992512929,15.08682942,189.08,189.0,48.5]
[1730992512930,15.08682942,189.08,189.02,15.08682942]
[1730992513133,15.08682942,189.08,189.01,15.08682942]
[1730992514211,21.22662942,189.09,189.02,15.08682942]
[1730992514434,15.08682942,189.09,189.03,15.08682942]
[1730992515020,22.2827,189.18,189.06,15.08682942]
[1730992515221,15.08682942,189.12,189.06,15.08682942]
[1730992515424,15.08682942,189.12,189.05,15.08682942]
[1730992516516,37.36952942,189.18,189.05,15.08682942]
[1730992516517,15.08682942,189.11,189.05,15.08682942]
[1730992516714,15.08682942,189.09,189.03,15.08682942]
[1730992517329,15.08682942,189.09,189.0,48.5]
[1730992517543,15.08682942,189.09,189.03,15.08682942]
[1730992517835,15.08682942,189.1,189.03,15.08682942]
[1730992518213,15.08682942,189.13,189.06,15.08682942]
[1730992518715,15.08682942,189.14,189.07,15.08682942]
[1730992519327,15.08682942,189.15,189.08,15.08682942]
[1730992520425,15.08682942,189.16,189.09,15.08682942]
[1730992521013,15.08682942,189.16,189.1,15.08682942]
[1730992521537,15.08682942,189.17,189.1,15.08682942]
[1730992521711,15.08682942,189.16,189.09,15.08682942]
[1730992521912,15.08682942,189.16,189.1,15.08682942]
[1730992522616,22.2827,189.18,189.13,15.08682942]
[1730992522940,22.2827,189.18,189.12,15.08682942]
[1730992522941,30.77432942,189.18,189.12,15.08682942]
[1730992523419,30.77432942,189.18,189.11,15.08682942]
[1730992523824,30.77432942,189.18,189.07,160.6]
[1730992523825,15.08682942,189.17,189.1,15.08682942]
[1730992524314,30.77432942,189.18,189.12,15.08682942]
[1730992524926,15.08682942,189.17,189.11,15.08682942]
[1730992525128,15.6875,189.18,189.1,15.08682942]
[1730992525129,15.08682942,189.16,189.1,15.08682942]
[1730992526244,15.08682942,189.15,189.09,15.08682942]
[1730992526419,15.08682942,189.15,189.08,15.08682942]
[1730992526735,15.08682942,189.1,189.04,15.08682942]
[1730992527033,15.6875,189.18,189.08,15.08682942]
[1730992527231,15.08682942,189.16,189.1,15.08682942]
[1730992527537,15.08682942,189.17,189.1,15.08682942]
[1730992527923,15.08682942,189.17,189.11,15.08682942]
[1730992528139,15.08682942,189.17,189.1,15.08682942]
[1730992528435,15.08682942,189.16,189.1,15.08682942]
[1730992528820,15.08682942,189.17,189.11,15.08682942]
[1730992529023,15.08682942,189.17,189.1,15.08682942]
[1730992529449,15.08682942,189.16,189.09,15.08682942]
[1730992529738,15.08682942,189.17,189.1,15.08682942]
[1730992529930,15.08682942,189.16,189.09,15.08682942]
[1730992530331,15.08682942,189.16,189.1,15.08682942]
[1730992530527,15.08682942,189.12,189.04,4.7644778]
[1730992530728,15.08682942,189.14,189.08,15.08682942]
[1730992530928,15.08682942,189.17,189.1,15.08682942]
[1730992531426,15.08682942,189.15,189.09,15.08682942]
[1730992531824,15.08682942,189.16,189.09,15.08682942]
[1730992532338,15.08682942,189.15,189.08,15.08682942]
[1730992532830,15.08682942,189.13,189.07,15.08682942]
[1730992533425,15.08682942,189.14,189.07,15.08682942]
[1730992533624,15.08682942,189.15,189.09,15.08682942]
[1730992534423,15.08682942,189.16,189.09,15.08682942]
[1730992534723,15.08682942,189.15,189.09,15.08682942]
[1730992535138,15.08682942,189.16,189.1,15.08682942]
[1730992535523,15.08682942,189.16,189.09,15.08682942]
[1730992536130,15.08682942,189.15,189.08,15.08682942]
[1730992536526,15.6875,189.18,189.02,184.576884]
[1730992536527,30.77432942,189.18,189.1,15.08682942]
[1730992536742,15.08682942,189.17,189.1,15.08682942]
[1730992536935,30.77432942,189.18,189.11,15.08682942]
[1730992539826,15.08682942,189.2,189.13,15.08682942]
[1730992541260,16.6615,189.22,189.18,15.08682942]
[1730992541543,15.08682942,189.21,189.15,15.08682942]
[1730992541756,31.74832942,189.22,189.15,15.08682942]
[1730992542048,31.74832942,189.22,189.16,15.08682942]
[1730992542460,16.6615,189.22,189.16,15.08682942]
[1730992542628,6.12059921,189.3,189.19,15.08682942]
[1730992542832,15.08682942,189.28,189.21,15.08682942]
[1730992543034,21.9665,189.33,189.23,15.08682942]
[1730992543235,15.08682942,189.3,189.23,15.08682942]
[1730992543625,15.08682942,189.28,189.22,15.08682942]
[1730992544553,15.08682942,189.28,189.21,15.08682942]
[1730992545131,15.08682942,189.28,189.22,15.08682942]
[1730992545943,15.08682942,189.3,189.23,15.08682942]
[1730992546128,15.08682942,189.3,189.24,15.08682942]
[1730992546468,15.08682942,189.29,189.22,15.08682942]
[1730992547333,15.08682942,189.25,189.19,15.08682942]
[1730992547550,15.08682942,189.24,189.18,15.08682942]
[1730992547750,15.08682942,189.26,189.19,15.08682942]
[1730992548061,27.2482,189.33,189.12,0.2]
[1730992548062,21.9665,189.33,189.23,15.08682942]
[1730992548351,21.9665,189.33,189.22,15.08682942]
[1730992548549,15.08682942,189.26,189.13,160.6]
[1730992548745,15.08682942,189.26,189.2,15.08682942]
[1730992548953,15.08682942,189.25,189.19,15.08682942]
[1730992549138,15.08682942,189.25,189.13,160.6]
[1730992549139,15.08682942,189.25,189.18,15.08682942]
[1730992549337,15.08682942,189.25,189.11,11.6883]
[1730992549338,15.08682942,189.23,189.17,15.08682942]
[1730992549771,15.08682942,189.24,189.17,15.08682942]
[1730992550368,15.08682942,189.24,189.18,15.08682942]
[1730992550583,15.08682942,189.24,189.17,15.08682942]
[1730992550748,15.08682942,189.22,189.15,15.08682942]
[1730992551070,15.08682942,189.27,189.14,15.08682942]
[1730992551071,15.08682942,189.21,189.14,15.08682942]
[1730992551246,21.4043,189.23,189.16,15.08682942]
[1730992551247,36.49112942,189.23,189.16,15.08682942]
[1730992551444,15.08682942,189.21,189.15,15.08682942]
[1730992551645,15.08682942,189.21,189.14,15.08682942]
[1730992551874,21.4043,189.23,189.17,15.08682942]
[1730992552080,21.5722,189.28,189.18,15.08682942]
[1730992552252,15.08682942,189.23,189.16,15.08682942]
[1730992552456,15.08682942,189.2,189.14,15.08682942]
[1730992552773,15.08682942,189.19,189.13,15.08682942]
[1730992553070,15.08682942,189.19,189.12,15.08682942]
[1730992553273,15.08682942,189.19,189.13,15.08682942]
[1730992553475,15.08682942,189.2,189.13,15.08682942]
[1730992553769,15.08682942,189.2,189.14,15.08682942]
[1730992554159,15.08682942,189.2,189.13,15.08682942]
[1730992554355,15.08682942,189.21,189.15,15.08682942]
[1730992554869,15.08682942,189.2,189.14,15.08682942]
[1730992555060,15.08682942,189.2,189.13,15.08682942]
[1730992555256,29.286374,189.26,189.14,15.08682942]
[1730992555468,15.08682942,189.2,189.14,15.08682942]
[1730992555771,15.08682942,189.2,189.13,15.08682942]
[1730992556172,15.08682942,189.2,189.14,15.08682942]
[1730992556361,23.902374,189.24,189.12,15.08682942]
[1730992556564,15.08682942,189.19,189.13,15.08682942]
[1730992556867,15.08682942,189.19,189.07,11.6883]
[1730992556868,15.08682942,189.2,189.14,15.08682942]
[1730992557253,15.08682942,189.19,189.13,15.08682942]
[1730992557754,15.08682942,189.18,189.12,15.08682942]
[1730992558446,15.21231942,189.17,189.01,11.6883]
[1730992558653,15.08682942,189.12,189.01,11.6883]
[1730992558865,0.12549,189.17,189.06,15.08682942]
[1730992559068,15.08682942,189.14,189.07,15.08682942]
[1730992559263,0.12549,189.17,189.07,15.08682942]
[1730992559264,15.08682942,189.13,189.07,15.08682942]
[1730992560471,15.08682942,189.13,189.01,11.6883]
[1730992560472,15.08682942,189.13,189.06,15.08682942]
[1730992560690,15.08682942,189.09,189.0,47.0]
[1730992560877,5.2865,189.16,189.06,15.08682942]
[1730992561059,15.08682942,189.15,189.09,15.08682942]
[1730992561373,0.12549,189.18,189.09,15.08682942]
[1730992561549,15.08682942,189.16,189.09,15.08682942]
[1730992561749,15.08682942,189.14,189.07,15.08682942]
[1730992561948,15.08682942,189.12,189.0,207.6]
[1730992562192,15.08682942,189.07,189.0,62.08682942]
[1730992562473,15.08682942,189.08,189.0,47.0]
[1730992562675,15.21231942,189.1,189.03,15.08682942]
[1730992563381,15.08682942,189.09,189.03,15.08682942]
[1730992563671,21.27912942,189.11,189.04,15.08682942]
[1730992563973,6.1923,189.11,189.06,15.08682942]
[1730992564163,6.1923,189.11,189.05,15.08682942]
[1730992564362,21.27912942,189.11,189.05,15.08682942]
[1730992564764,6.1923,189.11,189.05,15.08682942]
[1730992565159,21.27912942,189.11,189.05,15.08682942]
[1730992565358,16.4736,189.16,189.09,15.08682942]
[1730992565555,31.56042942,189.16,189.09,15.08682942]
[1730992565774,15.08682942,189.13,189.07,15.08682942]
[1730992566074,1.35469285,189.21,189.04,6.206]
[1730992566280,5.51941987,189.23,189.06,11.6883]
[1730992566492,15.08682942,189.19,189.12,15.08682942]
[1730992566778,15.08682942,189.18,189.11,15.08682942]
[1730992566982,15.08682942,189.19,189.12,15.08682942]
[1730992567156,15.6458,189.24,189.06,11.6883]
[1730992567157,15.6458,189.24,189.13,15.08682942]
[1730992567363,15.08682942,189.19,189.12,15.08682942]
[1730992567686,15.08682942,189.18,189.11,15.08682942]
[1730992567980,0.22549,189.23,189.12,15.08682942]
[1730992567981,15.08682942,189.19,189.12,15.08682942]
[1730992568486,15.08682942,189.2,189.06,172.2883]
[1730992568782,15.08682942,189.2,189.12,15.08682942]
[1730992569576,15.08682942,189.19,189.12,15.08682942]
[1730992569876,15.08682942,189.18,189.11,15.08682942]
[1730992570077,15.08682942,189.15,189.08,15.08682942]
[1730992570583,15.08682942,189.12,189.05,15.08682942]
[1730992570965,36.81952942,189.14,189.07,15.08682942]
[1730992571269,15.08682942,189.13,189.06,15.08682942]
[1730992571465,15.08682942,189.12,189.0,68.69412942]
[1730992571676,15.08682942,189.11,189.04,15.08682942]
[1730992571863,15.08682942,189.12,189.05,15.08682942]
[1730992572779,15.08682942,189.11,189.04,15.08682942]
[1730992573192,15.08682942,189.12,189.05,15.08682942]
[1730992573478,15.08682942,189.13,189.06,15.08682942]
[1730992574180,15.08682942,189.12,189.05,15.08682942]
[1730992574586,36.81952942,189.14,189.07,15.08682942]
[1730992574883,21.7327,189.14,189.08,15.08682942]
[1730992575469,21.7327,189.14,189.06,15.08682942]
[1730992575663,15.08682942,189.13,189.06,15.08682942]
[1730992576073,15.08682942,189.12,189.05,15.08682942]
[1730992577272,15.08682942,189.13,189.06,15.08682942]
[1730992578678,21.7327,189.14,189.06,15.08682942]
[1730992578882,15.08682942,189.13,189.06,15.08682942]
[1730992579669,15.08682942,189.12,189.05,15.08682942]
[1730992579868,21.7327,189.14,189.08,15.08682942]
[1730992580073,15.08682942,189.13,189.06,15.08682942]
[1730992580286,15.08682942,189.12,189.05,15.08682942]
[1730992580588,15.08682942,189.11,189.04,15.08682942]
[1730992581288,15.08682942,189.12,189.05,15.08682942]
[1730992582281,15.08682942,189.12,189.06,15.08682942]
[1730992582467,36.81952942,189.14,189.07,15.08682942]
[1730992582669,21.7327,189.14,189.08,15.08682942]
[1730992583272,36.81952942,189.14,189.08,15.08682942]
[1730992583476,15.5237,189.14,189.08,15.08682942]
[1730992583671,6.5331,189.18,189.12,15.08682942]
[1730992583867,15.08682942,189.17,189.1,15.08682942]
[1730992584167,15.08682942,189.14,189.07,15.08682942]
[1730992584578,15.08682942,189.14,189.08,15.08682942]
[1730992587062,0.12549,189.13,189.07,15.08682942]
[1730992587267,15.21231942,189.13,189.07,15.08682942]
[1730992587676,15.21231942,189.13,189.02,172.2883]
[1730992587677,15.21231942,189.13,189.06,15.08682942]
[1730992588178,15.08682942,189.1,189.04,15.08682942]
[1730992588383,15.08682942,189.1,189.01,15.08682942]
[1730992588384,15.08682942,189.08,189.01,15.08682942]
[1730992588675,15.21231942,189.09,189.02,15.08682942]
[1730992589287,0.12549,189.09,189.03,15.08682942]
[1730992589468,0.12549,189.09,189.02,15.08682942]
[1730992589469,15.21231942,189.09,189.02,15.08682942]
[1730992589969,0.12549,189.09,189.03,15.08682942]
[1730992590471,15.08682942,189.08,189.01,15.08682942]
[1730992590671,14.58682942,189.08,189.01,15.08682942]
[1730992590879,0.12549,189.09,189.04,15.08682942]
[1730992591277,30.63502942,189.1,189.04,15.08682942]
[1730992591278,15.5482,189.1,189.04,15.08682942]
[1730992591480,15.5482,189.1,189.0,47.0]
[1730992591675,15.5482,189.1,189.05,15.08682942]
[1730992592397,15.5482,189.1,189.04,15.08682942]
[1730992592707,16.4125,189.16,189.06,15.08682942]
[1730992593000,15.08682942,189.12,189.05,15.08682942]
[1730992593501,15.08682942,189.13,189.06,15.08682942]
[1730992594084,15.08682942,189.13,189.0,62.08682942]
[1730992594085,15.08682942,189.1,189.01,4.75829838]
[1730992594270,15.08682942,189.1,189.03,15.08682942]
[1730992594474,15.08682942,189.09,189.02,15.08682942]
[1730992595083,5.41239,189.15,189.03,15.08682942]
[1730992595084,15.08682942,189.1,189.03,15.08682942]
[1730992595495,5.41239,189.15,189.02,15.08682942]
[1730992595496,0.12549,189.08,189.02,15.08682942]
[1730992595696,15.08682942,189.07,189.0,62.08682942]